[Event "XXVII RUS-chT Women 2020"]
[Site "Sochi"]
[Date "2020.11.21"]
[Round "3.9"]
[White "Shafigullina, Zarina"]
[Black "Protopopova, Anastasiya"]
[Result "1/2-1/2"]
[ECO "E18"]
[WhiteElo "2302"]
[BlackElo "2267"]
[Annotator "ChessBase"]
[PlyCount "97"]
[EventDate "2020.11.19"]
[EventType "team-tourn"]
[EventCountry "RUS"]
[SourceTitle "playchess.com"]
[Source "ChessBase"]
[SourceQuality "1"]
[TimeControl "40/5400+30:1800+30"]

1. d4 {[%emt 0:00:00]} Nf6 {[%emt 0:00:00]} 2. c4 {[%emt 0:00:00]} e6 {[%emt 0:00:03]} 3. Nf3 {[%emt 0:00:00]} b6 {[%emt 0:00:57]} 4. g3 {[%emt 0:00:02]} Bb7 {[%emt 0:00:04]} 5. Bg2 {[%emt 0:00:40]} Be7 {[%emt 0:00:12]} 6. O-O {[%emt 0:00:23]} O-O {[%emt 0:00:10]} 7. Nc3 {[%emt 0:03:20]} Ne4 {[%emt 0:02:20]} 8. Bd2 {[%emt 0:00:15]} d5 {[%emt 0:04:09]} 9. Ne5 {[%emt 0:03:00]} Nd7 {[%emt 0:04:13]} 10. Nxe4 {[%emt 0:18:40]} dxe4 {[%emt 0:06:40]} 11. Qc2 {[%emt 0:05:34]} f5 {[%emt 0:13:46]} 12. Nxd7 {[%emt 0:07:22]} Qxd7 {[%emt 0:00:05]} 13. Bc3 {[%emt 0:00:36]} c5 {[%emt 0:05:27]} 14. Rad1 {[%emt 0:03:49]} Qc7 {[%emt 0:04:34]} 15. d5 {[%emt 0:10:27]} exd5 {[%emt 0:05:19]} 16. cxd5 {[%emt 0:00:52]} Rad8 {[%emt 0:00:41]} 17. f3 {[%emt 0:00:30]} Rxd5 {[%emt 0:06:26]} 18. Rxd5 {[%emt 0:01:23]} Bxd5 {[%emt 0:00:01]} 19. fxe4 {[%emt 0:00:08]} fxe4 {[%emt 0:01:08]} 20. Rxf8+ {[%emt 0:00:41]} Bxf8 {[%emt 0:00:40]} 21. Bxe4 {[%emt 0:00:07]} Bxe4 {[%emt 0:00:49]} 22. Qxe4 {[%emt 0:00:05]} b5 {[%emt 0:03:22]} 23. Kg2 {[%emt 0:06:40]} Qf7 {[%emt 0:06:56]} 24. b3 {[%emt 0:03:18]} Qd7 {[%emt 0:02:57]} 25. h4 {[%emt 0:03:10]} g6 {[%emt 0:04:29]} 26. Qe5 {[%emt 0:02:50]} Kf7 {[%emt 0:04:39]} 27. h5 {[%emt 0:09:48]} Qe6 {[%emt 0:03:15]} 28. hxg6+ {[%emt 0:03:34]} hxg6 {[%emt 0:00:17]} 29. Qf4+ {[%emt 0:01:14]} Kg8 {[%emt 0:02:02]} 30. Kf3 {[%emt 0:02:04]} Bd6 {[%emt 0:04:43]} 31. Qe4 {[%emt 0:00:36]} Qxe4+ {[%emt 0:02:19]} 32. Kxe4 {[%emt 0:00:05]} Bxg3 {[%emt 0:00:04]} 33. Kd5 {[%emt 0:00:03]} Bf2 {[%emt 0:00:17]} 34. Bd2 {[%emt 0:00:17]} Kf7 {[%emt 0:01:55]} 35. Bg5 {[%emt 0:00:51]} c4 {[%emt 0:00:20]} 36. bxc4 {[%emt 0:01:24]} bxc4 {[%emt 0:00:02]} 37. Kxc4 {[%emt 0:00:07]} Ke6 {[%emt 0:00:08]} 38. e4 {[%emt 0:03:23]} Ke5 {[%emt 0:00:33]} 39. Kd3 {[%emt 0:00:29]} Bb6 {[%emt 0:00:42]} 40. Bc1 {[%emt 0:00:00]} Bd8 {[%emt 0:00:00]} 41. Bb2+ {[%emt 0:06:10]} Ke6 {[%emt 0:03:18]} 42. a4 {[%emt 0:04:11]} g5 {[%emt 0:05:45]} 43. Ke3 {[%emt 0:02:58]} Bf6 {[%emt 0:00:39]} 44. Ba3 {[%emt 0:00:48]} Bc3 {[%emt 0:00:41]} 45. Bf8 {[%emt 0:01:26]} a6 {[%emt 0:02:08]} 46. Kf3 {[%emt 0:01:26]} Bd4 {[%emt 0:01:20]} 47. Bh6 {[%emt 0:05:24]} Kf6 {[%emt 0:00:28]} 48. Bf8 {[%emt 0:00:41]} Ke6 {[%emt 0:00:09]} 49. Bh6 {[%emt 0:00:13]} 1/2-1/2

[Event "XXVII RUS-chT Women 2020"]
[Site "Sochi"]
[Date "2020.11.21"]
[Round "3.10"]
[White "Lysenko, Margarita"]
[Black "Yakimova, Mariya"]
[Result "0-1"]
[ECO "A84"]
[WhiteElo "2237"]
[BlackElo "2244"]
[Annotator "NA"]
[PlyCount "70"]
[EventDate "2020.11.19"]
[EventType "team-tourn"]
[EventCountry "RUS"]
[SourceTitle "playchess.com"]
[Source "ChessBase"]
[SourceQuality "1"]
[TimeControl "40/5400+30:1800+30"]

1. d4 {[%emt 0:00:00]} f5 {[%emt 0:00:00]} 2. c4 {[%emt 0:00:04]} Nf6 {[%emt 0:00:00]} 3. Nf3 {[%emt 0:00:16]} e6 {[%emt 0:00:00]} 4. Nc3 {[%emt 0:00:20]} d5 {[%emt 0:00:00]} 5. e3 {[%emt 0:00:26]} c6 {[%emt 0:00:06]} 6. Bd3 {[%emt 0:00:11]} Bd6 {[%emt 0:00:46]} 7. O-O {[%emt 0:00:13]} O-O {[%emt 0:00:05]} 8. b3 {[%emt 0:00:21]} Ne4 {[%emt 0:02:39]} 9. Ne2 {[%emt 0:03:44]} Qe7 {[%emt 0:05:08]} 10. Bb2 {[%emt 0:03:17]} b6 {[%emt 0:02:56]} 11. Ne5 {[%emt 0:06:53]} Bb7 {[%emt 0:00:42]} 12. cxd5 {[%emt 0:11:26]} exd5 {[%emt 0:01:57]} 13. f3 {[%emt 0:01:52]} Ng5 $14 {[%emt 0:01:44]} (13... Nc5 $11) 14. Ng3 {[%emt 0:05:13]} g6 {[%emt 0:03:16]} 15. Rc1 {[%emt 0:11:46]} c5 {[%emt 0:02:01]} 16. f4 {[%emt 0:10:50]} Ne6 {[%emt 0:01:15]} 17. Ne2 {[%emt 0:08:33]} Nc6 {[%emt 0:05:29]} 18. Kh1 {[%emt 0:10:58]} Rac8 {[%emt 0:04:22]} 19. Nxc6 {[%emt 0:02:20]} Bxc6 {[%emt 0:00:34]} 20. dxc5 {[%emt 0:00:12]} bxc5 {[%emt 0:01:20]} 21. Ng1 {[%emt 0:00:46]} Qb7 {[%emt 0:10:47]} 22. Nf3 {[%emt 0:02:37]} Rfd8 {[%emt 0:03:38]} 23. Ne5 {[%emt 0:04:28]} Bxe5 {[%emt 0:02:15]} 24. Bxe5 {[%emt 0:00:08]} c4 {[%emt 0:03:46]} 25. Be2 {[%emt 0:02:50]} d4 {[%emt 0:00:33]} 26. exd4 {[%emt 0:05:14]} Bxg2+ {[%emt 0:03:50]} 27. Kg1 {[%emt 0:00:02]} Bxf1 {[%emt 0:02:39]} 28. Bxf1 {[%emt 0:01:02]} Qe4 {[%emt 0:03:39]} 29. Bxc4 {[%emt 0:02:48]} Kf8 {[%emt 0:05:33]} 30. Qd2 {[%emt 0:03:00]} Nxd4 {[%emt 0:01:52]} 31. Qb4+ {[%emt 0:00:18]} Ke8 {[%emt 0:00:20]} 32. Qa4+ {[%emt 0:01:27]} Nc6 {[%emt 0:01:30]} 33. Rf1 {[%emt 0:02:13]} Rd2 {[%emt 0:00:28]} 34. Rf2 {[%emt 0:00:23]} Qe1+ {[%emt 0:00:16]} 35. Rf1 {[%emt 0:00:05]} Qe3+ {[%emt 0:00:05]} 0-1

[Event "XXVII RUS-chT Women 2020"]
[Site "Sochi"]
[Date "2020.11.21"]
[Round "3.11"]
[White "Nasyrova, Ekaterina"]
[Black "Smirnova, Ekaterina"]
[Result "0-1"]
[ECO "A06"]
[WhiteElo "2261"]
[BlackElo "2239"]
[Annotator "ChessBase"]
[PlyCount "130"]
[EventDate "2020.11.19"]
[EventType "team-tourn"]
[EventCountry "RUS"]
[SourceTitle "playchess.com"]
[Source "ChessBase"]
[SourceQuality "1"]
[TimeControl "40/5400+30:1800+30"]

1. Nf3 {[%emt 0:00:00]} d5 {[%emt 0:00:00]} 2. e3 {[%emt 0:00:00]} Nf6 {[%emt 0:00:00]} 3. c4 {[%emt 0:00:00]} e6 {[%emt 0:00:00]} 4. Nc3 {[%emt 0:00:00]} b6 {[%emt 0:00:00]} 5. b3 {[%emt 0:00:32]} Bb7 {[%emt 0:00:03]} 6. Bb2 {[%emt 0:00:41]} Nbd7 {[%emt 0:00:11]} 7. Rc1 {[%emt 0:01:37]} a6 {[%emt 0:00:10]} 8. Be2 {[%emt 0:02:17]} Bd6 {[%emt 0:00:10]} 9. cxd5 {[%emt 0:01:53]} exd5 {[%emt 0:01:11]} 10. O-O {[%emt 0:05:55]} O-O {[%emt 0:00:13]} 11. Bd3 {[%emt 0:01:44]} Ng4 {[%emt 0:09:54]} 12. Bf5 {[%emt 0:05:58]} Ngf6 {[%emt 0:13:28]} 13. Ne2 {[%emt 0:05:15]} Qe7 {[%emt 0:03:30]} 14. Ng3 {[%emt 0:06:55]} Ne5 {[%emt 0:04:42]} 15. Bb1 {[%emt 0:00:55]} g6 {[%emt 0:10:37]} 16. Ng5 {[%emt 0:14:09]} c5 {[%emt 0:09:42]} 17. f4 {[%emt 0:07:22]} Ned7 {[%emt 0:00:33]} 18. Qe1 {[%emt 0:10:36]} h6 {[%emt 0:09:40]} 19. Nf3 {[%emt 0:01:35]} Ne4 {[%emt 0:03:42]} 20. h4 {[%emt 0:03:09]} f5 {[%emt 0:02:21]} 21. Nxe4 {[%emt 0:03:39]} dxe4 {[%emt 0:01:08]} 22. Qg3 {[%emt 0:00:27]} Kh7 {[%emt 0:02:11]} 23. h5 {[%emt 0:02:28]} gxh5 {[%emt 0:03:49]} 24. Nh4 {[%emt 0:03:29]} Rg8 {[%emt 0:00:40]} 25. Qh3 {[%emt 0:00:14]} Raf8 {[%emt 0:01:23]} 26. Nxf5 {[%emt 0:10:29]} Qe6 {[%emt 0:02:11]} 27. Ng7 {[%emt 0:00:13]} Qxh3 {[%emt 0:00:28]} 28. gxh3 {[%emt 0:00:03]} Nf6 {[%emt 0:01:14]} 29. Be5 {[%emt 0:01:45]} Rxg7+ {[%emt 0:00:16]} 30. Kh2 {[%emt 0:00:08]} Be7 {[%emt 0:02:12]} 31. d3 {[%emt 0:00:27]} Rfg8 {[%emt 0:05:31]} 32. Rf2 {[%emt 0:00:36]} exd3 {[%emt 0:01:23]} 33. Bxd3+ {[%emt 0:00:03]} Kh8 {[%emt 0:00:18]} 34. e4 {[%emt 0:00:15]} Rd8 {[%emt 0:02:37]} 35. Bb1 {[%emt 0:00:22]} Kg8 {[%emt 0:01:56]} 36. Bc7 {[%emt 0:00:44]} Rd7 {[%emt 0:00:55]} 37. Bxb6 {[%emt 0:00:28]} Nxe4 {[%emt 0:02:12]} 38. Bxe4 {[%emt 0:03:41]} Bxe4 {[%emt 0:00:02]} 39. Re2 {[%emt 0:00:24]} Bb7 {[%emt 0:00:55]} 40. Ba5 {[%emt 0:00:00]} Bh4 {[%emt 0:00:00]} 41. Be1 {[%emt 0:03:13]} Bxe1 {[%emt 0:03:39]} 42. Rcxe1 {[%emt 0:00:02]} Kh7 {[%emt 0:01:52]} 43. f5 {[%emt 0:00:28]} Rgf7 {[%emt 0:00:14]} 44. Re5 {[%emt 0:00:35]} Rd2+ {[%emt 0:00:17]} 45. Kg3 {[%emt 0:00:44]} Rd3+ {[%emt 0:05:46]} 46. R1e3 {[%emt 0:00:51]} Rxe3+ {[%emt 0:02:09]} 47. Rxe3 {[%emt 0:00:02]} Bc8 {[%emt 0:00:26]} 48. Re8 {[%emt 0:00:09]} Bxf5 {[%emt 0:00:50]} 49. Re5 {[%emt 0:00:08]} Bb1 {[%emt 0:01:27]} 50. Rxc5 {[%emt 0:00:27]} Bxa2 {[%emt 0:00:10]} 51. Ra5 {[%emt 0:00:08]} Bxb3 {[%emt 0:00:09]} 52. Rxa6 {[%emt 0:00:10]} Kg7 {[%emt 0:00:33]} 53. Rb6 {[%emt 0:01:41]} Bc2 {[%emt 0:00:23]} 54. Rc6 {[%emt 0:02:22]} Bg6 {[%emt 0:00:25]} 55. Rc5 {[%emt 0:00:09]} Re7 {[%emt 0:00:16]} 56. h4 {[%emt 0:02:45]} Re3+ {[%emt 0:00:13]} 57. Kh2 {[%emt 0:00:45]} Kf6 {[%emt 0:00:14]} 58. Ra5 {[%emt 0:01:01]} Bf5 {[%emt 0:00:19]} 59. Ra6+ {[%emt 0:03:05]} Re6 {[%emt 0:00:55]} 60. Ra8 {[%emt 0:03:28]} Re4 {[%emt 0:00:46]} 61. Rf8+ {[%emt 0:00:07]} Ke5 {[%emt 0:00:34]} 62. Rh8 {[%emt 0:00:27]} Kf4 {[%emt 0:00:56]} 63. Rxh6 {[%emt 0:00:37]} Re2+ {[%emt 0:00:06]} 64. Kg1 {[%emt 0:00:06]} Kg3 {[%emt 0:01:53]} 65. Kf1 {[%emt 0:00:09]} Re3 {[%emt 0:00:40]} 0-1

[Event "XXVII RUS-chT Women 2020"]
[Site "Sochi"]
[Date "2020.11.21"]
[Round "3.14"]
[White "Semenova, Elena"]
[Black "Pogorelskikh, Sofia"]
[Result "1-0"]
[ECO "B23"]
[WhiteElo "2299"]
[BlackElo "2128"]
[Annotator "NA"]
[PlyCount "89"]
[EventDate "2020.11.19"]
[EventType "team-tourn"]
[EventCountry "RUS"]
[SourceTitle "playchess.com"]
[Source "ChessBase"]
[SourceQuality "1"]
[TimeControl "40/5400+30:1800+30"]

1. e4 {[%emt 0:00:00]} c5 {[%emt 0:00:00]} 2. Nc3 {[%emt 0:00:00]} d6 {[%emt 0:00:17]} 3. Nf3 {[%emt 0:00:21]} Nf6 {[%emt 0:00:23]} 4. e5 {[%emt 0:00:19]} dxe5 {[%emt 0:08:55]} 5. Nxe5 {[%emt 0:00:06]} Nbd7 {[%emt 0:03:36]} 6. d4 {[%emt 0:00:39]} e6 {[%emt 0:11:26]} 7. Be3 {[%emt 0:03:15]} cxd4 {[%emt 0:05:41]} 8. Bxd4 {[%emt 0:05:01]} Be7 {[%emt 0:02:50]} 9. Qe2 {[%emt 0:12:08]} Nxe5 {[%emt 0:09:27]} 10. Qxe5 {[%emt 0:02:34]} Qd6 {[%emt 0:08:49]} 11. Nb5 {[%emt 0:13:01]} Qxe5+ {[%emt 0:03:02]} 12. Bxe5 {[%emt 0:00:02]} Bd8 {[%emt 0:03:34]} 13. Nd6+ {[%emt 0:12:18]} Ke7 {[%emt 0:03:04]} 14. O-O-O {[%emt 0:01:40]} Ng4 {[%emt 0:06:16]} 15. Nxc8+ {[%emt 0:07:55]} Rxc8 {[%emt 0:00:09]} 16. Bd6+ {[%emt 0:00:04]} Kf6 {[%emt 0:00:17]} 17. Be2 {[%emt 0:05:42]} Ne5 {[%emt 0:03:48]} 18. f4 {[%emt 0:06:58]} Nc4 {[%emt 0:02:34]} 19. Bb4 {[%emt 0:09:39]} Ne3 {[%emt 0:05:24]} 20. Rd2 {[%emt 0:00:04]} Bb6 {[%emt 0:02:35]} 21. Bf3 {[%emt 0:03:58]} Rc4 {[%emt 0:07:08]} 22. Bc3+ {[%emt 0:01:09]} Ke7 {[%emt 0:00:09]} 23. g3 {[%emt 0:02:13]} f6 {[%emt 0:01:58]} 24. Bxb7 {[%emt 0:02:10]} Bc5 {[%emt 0:01:22]} 25. Rd3 {[%emt 0:01:51]} Rb8 {[%emt 0:01:19]} 26. Bf3 {[%emt 0:00:45]} Ra4 {[%emt 0:00:48]} 27. Re1 {[%emt 0:01:00]} Nf5 {[%emt 0:02:25]} 28. Bd5 {[%emt 0:01:02]} Rb6 {[%emt 0:00:18]} 29. Bb3 {[%emt 0:00:29]} Raa6 {[%emt 0:00:13]} 30. a3 {[%emt 0:04:34]} h5 {[%emt 0:00:22]} 31. Bc4 {[%emt 0:00:50]} Ra4 {[%emt 0:00:16]} 32. b4 {[%emt 0:00:39]} Bf2 {[%emt 0:01:09]} 33. Re2 {[%emt 0:00:23]} Bg1 {[%emt 0:00:10]} 34. Kb2 {[%emt 0:00:51]} a5 {[%emt 0:03:00]} 35. Bb3 {[%emt 0:01:48]} axb4 {[%emt 0:00:15]} 36. Bxa4 {[%emt 0:00:35]} bxc3+ {[%emt 0:00:10]} 37. Kxc3 {[%emt 0:00:26]} Nd6 {[%emt 0:00:22]} 38. Bb3 {[%emt 0:01:07]} Nb5+ {[%emt 0:00:17]} 39. Kd2 {[%emt 0:01:05]} Bc5 {[%emt 0:00:37]} 40. a4 {[%emt 0:00:00]} Nd4 {[%emt 0:00:00]} 41. Re4 {[%emt 0:05:16]} Rb4 {[%emt 0:01:17]} 42. Kd1 {[%emt 0:03:47]} f5 {[%emt 0:01:39]} 43. Re5 {[%emt 0:02:02]} Bd6 {[%emt 0:00:20]} 44. Ra5 {[%emt 0:00:56]} Nc6 {[%emt 0:01:03]} 45. Ra6 1-0

[Event "XXVII RUS-chT Women 2020"]
[Site "Sochi"]
[Date "2020.11.21"]
[Round "3.15"]
[White "Yurasova, Daria"]
[Black "Vasilevich, Irina"]
[Result "1-0"]
[ECO "A40"]
[WhiteElo "2075"]
[BlackElo "2258"]
[Annotator "ChessBase"]
[PlyCount "57"]
[EventDate "2020.11.19"]
[EventType "team-tourn"]
[EventCountry "RUS"]
[SourceTitle "playchess.com"]
[Source "ChessBase"]
[SourceQuality "1"]
[TimeControl "40/5400+30:1800+30"]

1. d4 {[%emt 0:00:00]} b6 {[%emt 0:00:00]} 2. Nf3 {[%emt 0:00:30]} Bb7 {[%emt 0:00:06]} 3. e3 {[%emt 0:00:29]} e6 {[%emt 0:01:38]} 4. Bd3 {[%emt 0:00:12]} Nf6 {[%emt 0:00:47]} 5. O-O {[%emt 0:00:42]} Be7 {[%emt 0:02:27]} 6. c4 {[%emt 0:00:09]} O-O {[%emt 0:02:09]} 7. Nc3 {[%emt 0:00:07]} d5 {[%emt 0:02:19]} 8. b3 {[%emt 0:05:20]} c5 {[%emt 0:05:31]} 9. cxd5 {[%emt 0:00:28]} exd5 {[%emt 0:02:29]} 10. Bb2 {[%emt 0:00:17]} Nc6 {[%emt 0:06:48]} 11. dxc5 {[%emt 0:01:09]} bxc5 {[%emt 0:04:54]} 12. Rc1 {[%emt 0:00:06]} Qa5 {[%emt 0:20:48]} 13. Na4 {[%emt 0:04:25]} Ne4 {[%emt 0:01:00]} 14. Ne5 {[%emt 0:14:09]} Nxe5 {[%emt 0:11:42]} 15. Bxe5 {[%emt 0:00:42]} Rad8 {[%emt 0:00:29]} 16. Qc2 {[%emt 0:17:21]} Rfe8 {[%emt 0:16:43]} 17. b4 {[%emt 0:04:00]} cxb4 {[%emt 0:05:48]} 18. Bc7 {[%emt 0:00:30]} b3 {[%emt 0:00:05]} 19. Qxb3 {[%emt 0:01:20]} Qb4 {[%emt 0:00:44]} 20. Qxb4 {[%emt 0:00:37]} Bxb4 {[%emt 0:00:06]} 21. Bxd8 {[%emt 0:00:06]} Rxd8 {[%emt 0:00:17]} 22. Rb1 {[%emt 0:01:27]} a5 {[%emt 0:00:29]} 23. Bxe4 {[%emt 0:01:59]} dxe4 {[%emt 0:00:11]} 24. a3 {[%emt 0:00:05]} Bc6 {[%emt 0:00:05]} 25. axb4 {[%emt 0:00:08]} Bxa4 {[%emt 0:00:05]} 26. bxa5 {[%emt 0:00:05]} Kf8 {[%emt 0:03:00]} 27. a6 {[%emt 0:01:56]} Ra8 {[%emt 0:00:16]} 28. Rb6 {[%emt 0:00:22]} Ke7 {[%emt 0:00:48]} 29. Ra1 {[%emt 0:00:26]} 1-0

[Event "XXVII RUS-chT Women 2020"]
[Site "Sochi"]
[Date "2020.11.21"]
[Round "3.16"]
[White "Mikheeva, Galina"]
[Black "Balaian, Alina"]
[Result "0-1"]
[ECO "C02"]
[WhiteElo "1943"]
[BlackElo "2243"]
[Annotator "ChessBase"]
[PlyCount "60"]
[EventDate "2020.11.19"]
[EventType "team-tourn"]
[EventCountry "RUS"]
[SourceTitle "playchess.com"]
[Source "ChessBase"]
[SourceQuality "1"]
[TimeControl "40/5400+30:1800+30"]

1. e4 {[%emt 0:00:00]} e6 {[%emt 0:00:00]} 2. d4 {[%emt 0:00:00]} d5 {[%emt 0:00:00]} 3. e5 {[%emt 0:00:00]} c5 {[%emt 0:00:00]} 4. c3 {[%emt 0:00:00]} Nc6 {[%emt 0:00:00]} 5. Nf3 {[%emt 0:00:00]} Nh6 6. a3 {[%emt 0:01:09]} Nf5 {[%emt 0:00:12]} 7. Be3 {[%emt 0:00:44]} f6 {[%emt 0:03:26]} 8. exf6 {[%emt 0:05:36]} Qxf6 {[%emt 0:04:44]} 9. Bd3 {[%emt 0:03:18]} Bd6 {[%emt 0:04:08]} 10. O-O cxd4 11. cxd4 {[%emt 0:17:45]} Nxe3 {[%emt 0:03:22]} 12. fxe3 {[%emt 0:00:09]} Qh6 {[%emt 0:00:14]} 13. Qe2 {[%emt 0:09:16]} O-O 14. Nbd2 {[%emt 0:03:05]} Bd7 {[%emt 0:02:21]} 15. Bb5 {[%emt 0:13:51]} Rae8 16. Bxc6 {[%emt 0:06:02]} bxc6 {[%emt 0:04:27]} 17. Ne5 {[%emt 0:00:09]} Bxe5 {[%emt 0:02:45]} 18. dxe5 {[%emt 0:00:05]} c5 {[%emt 0:01:47]} 19. Nf3 {[%emt 0:04:00]} Rb8 {[%emt 0:01:26]} 20. Rfe1 {[%emt 0:05:55]} Qg6 {[%emt 0:09:51]} 21. Nh4 {[%emt 0:15:00]} Qe4 {[%emt 0:01:06]} 22. Nf3 {[%emt 0:00:25]} Be8 {[%emt 0:03:25]} 23. Rac1 {[%emt 0:01:51]} Bh5 {[%emt 0:05:22]} 24. Rxc5 {[%emt 0:05:14]} Bxf3 {[%emt 0:00:35]} 25. gxf3 Rxf3 {[%emt 0:01:27]} 26. Qg2 {[%emt 0:02:04]} Rbf8 {[%emt 0:01:41]} 27. Qg5 {[%emt 0:03:33]} R3f5 {[%emt 0:01:13]} 28. Qg3 {[%emt 0:00:28]} h6 {[%emt 0:01:03]} 29. h4 {[%emt 0:00:34]} Rf3 {[%emt 0:00:40]} 30. Qg2 {[%emt 0:00:36]} Qxh4 {[%emt 0:00:27]} 0-1

[Event "XXVII RUS-chT Women 2020"]
[Site "Sochi"]
[Date "2020.11.21"]
[Round "3.17"]
[White "Zherebtsova, Alexandra"]
[Black "Grigorieva, Yulia"]
[Result "1-0"]
[ECO "D85"]
[WhiteElo "2204"]
[BlackElo "2343"]
[Annotator "NA"]
[PlyCount "81"]
[EventDate "2020.11.19"]
[EventType "team-tourn"]
[EventCountry "RUS"]
[SourceTitle "playchess.com"]
[Source "ChessBase"]
[SourceQuality "1"]
[TimeControl "40/5400+30:1800+30"]

1. d4 {[%emt 0:00:00]} Nf6 {[%emt 0:00:00]} 2. c4 {[%emt 0:00:00]} g6 {[%emt 0:00:00]} 3. Nc3 {[%emt 0:00:00]} d5 {[%emt 0:00:00]} 4. cxd5 {[%emt 0:00:22]} Nxd5 {[%emt 0:00:00]} 5. Na4 {[%emt 0:00:27]} Nf6 {[%emt 0:13:09]} 6. Nf3 {[%emt 0:01:03]} Bg7 {[%emt 0:03:12]} 7. Bf4 {[%emt 0:00:38]} O-O {[%emt 0:04:05]} 8. e3 {[%emt 0:00:35]} Nd5 {[%emt 0:06:30]} 9. Bg3 {[%emt 0:05:22]} c6 {[%emt 0:02:39]} 10. Qd2 {[%emt 0:09:58]} Bg4 {[%emt 0:01:41]} 11. Ne5 {[%emt 0:05:54]} Bf5 {[%emt 0:03:09]} 12. Be2 {[%emt 0:14:01]} f6 {[%emt 0:03:34]} 13. Nf3 $14 {[%emt 0:06:26]} Nd7 {[%emt 0:03:26]} 14. O-O {[%emt 0:06:32]} e5 {[%emt 0:05:31]} 15. dxe5 {[%emt 0:01:55]} fxe5 {[%emt 0:01:34]} 16. Bc4 {[%emt 0:05:58]} Be4 {[%emt 0:03:59]} 17. Nc3 {[%emt 0:07:10]} Bxf3 {[%emt 0:01:57]} 18. gxf3 {[%emt 0:00:01]} N7b6 {[%emt 0:00:49]} 19. Bb3 {[%emt 0:00:36]} Kh8 {[%emt 0:01:14]} 20. Nxd5 {[%emt 0:04:11]} cxd5 {[%emt 0:01:14]} 21. Rfd1 {[%emt 0:07:09]} d4 {[%emt 0:01:43]} 22. Qe2 {[%emt 0:05:18]} Qg5 {[%emt 0:07:51]} 23. Rac1 {[%emt 0:04:08]} Qh5 {[%emt 0:06:25]} 24. exd4 {[%emt 0:05:26]} Rxf3 {[%emt 0:02:14]} 25. Re1 {[%emt 0:02:41]} Raf8 {[%emt 0:04:22]} 26. dxe5 {[%emt 0:00:54]} Qg5 {[%emt 0:03:50]} 27. e6 {[%emt 0:03:21]} Bd4 {[%emt 0:04:12]} 28. e7 {[%emt 0:01:23]} Rxg3+ {[%emt 0:11:24]} 29. Kh1 {[%emt 0:00:36]} Rgf3 {[%emt 0:00:23]} 30. Qxf3 {[%emt 0:01:33]} Rxf3 {[%emt 0:00:40]} 31. e8=Q+ {[%emt 0:00:06]} Kg7 {[%emt 0:00:03]} 32. Rc7+ {[%emt 0:01:31]} Kh6 {[%emt 0:00:05]} 33. Qg8 {[%emt 0:00:21]} Qf5 {[%emt 0:01:46]} 34. Qxh7+ {[%emt 0:00:32]} Kg5 {[%emt 0:00:01]} 35. Rg1+ {[%emt 0:00:20]} Kf4 {[%emt 0:00:08]} 36. Rf7 {[%emt 0:00:29]} Bf6 {[%emt 0:00:06]} 37. Qxg6 {[%emt 0:00:38]} Qxg6 {[%emt 0:00:31]} 38. Rxg6 {[%emt 0:00:11]} Ke5 {[%emt 0:00:03]} 39. Kg2 {[%emt 0:00:31]} Rf4 {[%emt 0:00:27]} 40. Rxb7 {[%emt 0:00:00]} Bh4 {[%emt 0:00:00]} 41. f3 {[%emt 0:00:36]} 1-0

[Event "XXVII RUS-chT Women 2020"]
[Site "Sochi"]
[Date "2020.11.21"]
[Round "3.19"]
[White "Khokhlova, Daria"]
[Black "Idrisova, Roza"]
[Result "1-0"]
[ECO "D11"]
[WhiteElo "2196"]
[BlackElo "1960"]
[Annotator "NA"]
[PlyCount "97"]
[EventDate "2020.11.19"]
[EventType "team-tourn"]
[EventCountry "RUS"]
[SourceTitle "playchess.com"]
[Source "ChessBase"]
[SourceQuality "1"]
[TimeControl "40/5400+30:1800+30"]

1. d4 {[%emt 0:00:00]} d5 {[%emt 0:00:00]} 2. c4 {[%emt 0:00:00]} c6 {[%emt 0:00:00]} 3. Nf3 {[%emt 0:00:00]} Nf6 {[%emt 0:00:01]} 4. e3 {[%emt 0:00:00]} Bg4 {[%emt 0:04:53]} 5. Qb3 {[%emt 0:00:00]} Qb6 {[%emt 0:01:06]} 6. c5 {[%emt 0:01:44]} Qc7 {[%emt 0:02:05]} 7. Ne5 {[%emt 0:00:35]} Bf5 {[%emt 0:01:51]} 8. Nc3 {[%emt 0:09:52]} Nbd7 {[%emt 0:01:02]} 9. Bd3 {[%emt 0:05:08]} Bxd3 {[%emt 0:02:54]} 10. Nxd3 {[%emt 0:01:09]} e6 {[%emt 0:00:46]} 11. f3 {[%emt 0:03:33]} b6 {[%emt 0:04:13]} 12. cxb6 {[%emt 0:00:44]} Qxb6 {[%emt 0:00:47]} 13. Qc2 {[%emt 0:01:04]} Bd6 $11 {[%emt 0:03:12]} 14. Bd2 {[%emt 0:01:20]} e5 {[%emt 0:02:57]} 15. Rc1 {[%emt 0:07:55]} Rc8 {[%emt 0:07:25]} 16. dxe5 {[%emt 0:07:19]} Nxe5 {[%emt 0:00:28]} 17. Nxe5 {[%emt 0:00:13]} Bxe5 {[%emt 0:00:17]} 18. Qf5 {[%emt 0:01:51]} Qb8 {[%emt 0:02:22]} 19. f4 {[%emt 0:02:52]} Bd6 {[%emt 0:02:42]} 20. e4 {[%emt 0:04:12]} dxe4 {[%emt 0:01:58]} 21. Nxe4 {[%emt 0:01:12]} Be7 {[%emt 0:01:30]} 22. Nxf6+ {[%emt 0:01:08]} Bxf6 {[%emt 0:02:29]} 23. Qe4+ {[%emt 0:00:27]} Kf8 {[%emt 0:13:14]} 24. Bb4+ {[%emt 0:10:01]} Kg8 {[%emt 0:00:54]} 25. O-O {[%emt 0:00:03]} g6 {[%emt 0:02:28]} 26. Bc3 {[%emt 0:10:30]} Qb6+ {[%emt 0:02:30]} 27. Kh1 {[%emt 0:00:24]} Bxc3 {[%emt 0:03:13]} 28. bxc3 {[%emt 0:03:30]} Qc5 {[%emt 0:02:48]} 29. f5 {[%emt 0:01:41]} Qd5 {[%emt 0:01:44]} 30. Qe7 {[%emt 0:04:07]} Kg7 {[%emt 0:08:15]} 31. c4 {[%emt 0:01:22]} Qd8 {[%emt 0:01:03]} 32. f6+ {[%emt 0:01:14]} Kg8 {[%emt 0:01:22]} 33. Qxa7 {[%emt 0:01:42]} h5 {[%emt 0:02:18]} 34. Rce1 {[%emt 0:06:07]} Rc7 {[%emt 0:01:32]} 35. Qc5 {[%emt 0:00:56]} Kh7 {[%emt 0:02:38]} 36. Re5 {[%emt 0:05:48]} Qd3 {[%emt 0:02:18]} 37. Rfe1 {[%emt 0:01:18]} Qd2 {[%emt 0:08:05]} 38. a4 {[%emt 0:02:46]} Rb8 {[%emt 0:02:15]} 39. a5 {[%emt 0:02:43]} Rb2 {[%emt 0:00:56]} 40. Rg1 {[%emt 0:00:00]} Qf4 {[%emt 0:00:00]} 41. Qd6 {[%emt 0:01:36]} Rf2 {[%emt 0:06:12]} 42. Qxc7 {[%emt 0:00:44]} Qxf6 {[%emt 0:00:16]} 43. Ree1 {[%emt 0:01:21]} h4 {[%emt 0:03:12]} 44. Qe7 {[%emt 0:00:23]} Qf4 {[%emt 0:02:07]} 45. Re4 {[%emt 0:00:18]} Qf5 {[%emt 0:00:51]} 46. Rxh4+ {[%emt 0:00:10]} Kg7 {[%emt 0:00:25]} 47. Qd8 {[%emt 0:00:04]} g5 {[%emt 0:01:16]} 48. Qh8+ {[%emt 0:00:07]} Kg6 {[%emt 0:00:11]} 49. Rh6# {[%emt 0:00:03]} 1-0